fUSD/lending_fUSD_20260327
["ID","MTS","AMOUNT","RATE_DAILY","PERIOD"]
[418937960,1774599042150,-1487.54,0.0001599,2]
[418937961,1774599042160,-1487.54,0.0001599,2]
[418937962,1774599042169,-1487.54,0.0001599,2]
[418937963,1774599042179,-1487.54,0.0001599,2]
[418937964,1774599042188,-1487.54,0.0001599,2]
[418937965,1774599042197,-666.0,0.00015999,2]
[418937966,1774599042206,-666.0,0.00015999,2]
[418937967,1774599042215,-500.0,0.00015999,2]
[418937968,1774599042225,-500.0,0.00015999,2]
[418937969,1774599042234,-500.0,0.00015999,2]
[418937970,1774599042243,-553.10600438,0.00015999,2]
[418937971,1774599042253,-194.30677307,0.00015999,2]
[418937972,1774599042262,-266.63598132,0.00015999,2]
[418937973,1774599042272,-500.0,0.00015999,2]
[418937974,1774599042282,-500.0,0.00015999,2]
[418937975,1774599042292,-500.0,0.00015999,2]
[418937976,1774599042301,-329.88455241,0.00015999,2]
[418937977,1774599042310,-500.0,0.00015999,2]
[418937978,1774599042321,-500.0,0.00015999,2]
[418937979,1774599042330,-535.06452397,0.00015999,2]
[418937980,1774599042339,-500.0,0.00015999,2]
[418937981,1774599042349,-64869.97009936,0.00016,2]
[418937982,1774599042549,-278.90445185,0.00016,2]
[418937983,1774599042582,-943.78799,0.00016,2]
[418937984,1774599042609,-14868.16481168,0.00016,2]
[418937989,1774599043318,-194.21510532,0.00012873,2]
[418937991,1774599043328,-257.55811778,0.00016,2]
[418937992,1774599043339,-10872.26460037,0.00016,2]
[418937993,1774599043367,-1470.89777417,0.00016,2]
[418937996,1774599043378,-1542.52851368,0.00016,2]
[418937997,1774599043390,-4223.34823074,0.00016,2]
[418937998,1774599043401,-367.4653783,0.00016,2]
[418937999,1774599043508,-475.2949715,0.00016,2]
[418938000,1774599043520,-2097.93,0.00016,2]
[418938001,1774599043551,-401.616215,0.00016,2]
[418938006,1774599046094,-88516.72404849,0.00016,2]
[418938008,1774599046382,-525.568331,0.00016,2]
[418938009,1774599046395,-5012.13086891,0.00016,2]
[418938010,1774599046664,-902.4970347,0.00016,2]
[418938011,1774599046685,-733.08389315,0.00016,2]
[418938012,1774599046698,-515.642885,0.00016,2]
[418938043,1774600238620,-167.77,0.00010305,2]
[418938044,1774600238630,-396.56,0.00011507,2]
[418938045,1774600238639,-1300.9,0.00012351,2]
[418938046,1774600238648,-300.0,0.00012657,2]
[418938047,1774600238658,-809.84750515,0.00012657,2]
[418938048,1774600238670,-390.15249485,0.00012657,2]
[418938049,1774600238680,-300.0,0.00012657,2]
[418938050,1774600238690,-85.38931826,0.000127,2]
[418938051,1774600238701,-64.61068174,0.000127,2]
[418938052,1774600238711,-431.15141547,0.000127,2]
[418938053,1774600238721,-500.0,0.000127,2]
[418938054,1774600238730,-500.0,0.000127,2]
[418938055,1774600238740,-166.67,0.00012722,2]
[418938056,1774600238750,-532.0,0.00013111,2]
[418938057,1774600238759,-225.29114578,0.00013153,2]
[418938058,1774600238771,-1774.70885422,0.00013153,2]
[418938059,1774600238781,-164.84008022,0.00013187,2]
[418938060,1774600238792,-335.15991978,0.00013187,2]
[418938061,1774600238802,-327.29512022,0.00013187,2]
[418938064,1774600240967,-194.21510532,0.00012557,2]
[418938065,1774600240977,-139.11762668,0.00013187,2]
[418938066,1774600241007,-33.5872531,0.00013187,2]
[418938067,1774600241017,-500.0,0.00013187,2]
[418938068,1774600241027,-500.0,0.00013187,2]
[418938069,1774600241036,-500.0,0.00013187,2]
[418938070,1774600241045,-500.0,0.00013187,2]
[418938071,1774600241054,-500.0,0.00013187,2]
[418938072,1774600241063,-500.0,0.00013187,2]
[418938073,1774600241072,-500.0,0.00013187,2]
[418938074,1774600241082,-500.0,0.00013187,2]
[418938075,1774600241091,-500.0,0.00013187,2]
[418938076,1774600241100,-500.0,0.00013187,2]
[418938077,1774600241109,-500.0,0.00013187,2]
[418938078,1774600241118,-500.0,0.00013187,2]
[418938079,1774600241127,-500.0,0.00013187,2]
[418938080,1774600241136,-500.0,0.00013187,2]
[418938081,1774600241145,-500.0,0.00013187,2]
[418938082,1774600241154,-500.0,0.00013187,2]
[418938083,1774600241164,-500.0,0.00013187,2]
[418938084,1774600241173,-500.0,0.00013187,2]
[418938085,1774600241182,-500.0,0.00013187,2]
[418938086,1774600241191,-500.0,0.00013187,2]
[418938087,1774600241201,-500.0,0.00013187,2]
[418938088,1774600241210,-500.0,0.00013187,2]
[418938089,1774600241219,-500.0,0.00013187,2]
[418938090,1774600241228,-500.0,0.00013187,2]
[418938091,1774600241238,-163.89053905,0.00013187,2]
[418938092,1774600241248,-500.0,0.00013187,2]
[418938093,1774600241257,-500.0,0.00013187,2]
[418938094,1774600241266,-181730.4552,0.00013188,2]
[418938095,1774600241275,-500.0,0.00013248,2]
[418938096,1774600241284,-160.26887516,0.00013273,2]
[418938097,1774600241294,-500.0,0.00013273,2]
[418938098,1774600241303,-17402.27753262,0.00013278,2]
[418938099,1774600241312,-150.0,0.00013285,2]
[418938100,1774600241320,-20928.36731268,0.00013286,2]
[418938101,1774600241330,-5110.7848,0.00013288,2]
[418938102,1774600241339,-2160.0437545,0.00013288,2]
[418938113,1774600247011,-500.0,0.00013187,2]
[418938114,1774600247021,-500.0,0.00013187,2]
[418938115,1774600247031,-500.0,0.00013187,2]
[418938116,1774600247041,-500.0,0.00013187,2]
[418938117,1774600247050,-447.9336,0.00013187,2]
[418938151,1774601237093,-1211.1912,0.00012888,2]
[418938152,1774601237114,-32852.19676087,0.00012888,2]
[418938153,1774601245118,-34110.96099474,0.00012888,2]
[418938223,1774601434788,-150.0,0.00012581,2]
[418938224,1774601434800,-150.0,0.00012887,2]
[418938225,1774601434810,-1200.0,0.00012887,2]
[418938226,1774601434819,-172.0,0.00012888,3]
[418938227,1774601434830,-170.0,0.00012888,3]
[418938228,1774601434839,-25973.28394439,0.00012888,2]
[418938229,1774601434850,-11999.9622,0.00012888,2]
[418938230,1774601434860,-248.1461,0.00012911,2]
[418938231,1774601434870,-591.77442886,0.00012973,2]
[418938232,1774601434879,-17402.27753262,0.00012978,2]
[418938233,1774601434889,-190.49,0.00012987,2]
[418938234,1774601434899,-2160.0437,0.00012987,2]
[418938235,1774601434909,-33000.0536,0.00012988,2]
[418938236,1774601434919,-1000.0,0.00012988,2]
[418938237,1774601434928,-7185.10014303,0.00013011,2]
[418938238,1774601434947,-269.19372483,0.00013011,2]
[418938246,1774601437618,-1504.12863177,0.00013011,2]
[418938247,1774601437630,-609.94150973,0.00013011,2]
[418938248,1774601437641,-3726.70783633,0.00013011,2]
[418938249,1774601437652,-7997.95461696,0.00013011,2]
[418938250,1774601437662,-1154.03829426,0.00013011,2]
[418938251,1774601437673,-2267.5485485,0.00013011,2]
[418938252,1774601437688,-1164.98855328,0.00013011,2]
[418938253,1774601437698,-160.26887516,0.00013073,2]
[418938254,1774601437707,-301.32989085,0.00013073,2]
[418938255,1774601437716,-500.0,0.00013087,2]
[418938256,1774601437725,-500.0,0.00013087,2]
[418938257,1774601437735,-500.0,0.00013087,2]
[418938258,1774601437744,-500.0,0.00013087,2]
[418938259,1774601437753,-500.0,0.00013087,2]
[418938260,1774601437763,-500.0,0.00013087,2]
[418938261,1774601437772,-463.51102325,0.00013087,2]
[418938262,1774601437781,-500.0,0.00013087,2]
[418938263,1774601437790,-500.0,0.00013087,2]
[418938264,1774601437800,-500.0,0.00013087,2]
[418938265,1774601437809,-500.0,0.00013087,2]
[418938266,1774601437821,-500.0,0.00013087,2]
[418938267,1774601437830,-500.0,0.00013087,2]
[418938268,1774601437842,-500.0,0.00013087,2]
[418938269,1774601437851,-500.0,0.00013087,2]
[418938270,1774601437861,-500.0,0.00013087,2]
[418938271,1774601437870,-500.0,0.00013087,2]
[418938272,1774601437879,-150.21762931,0.00013087,2]
[418938273,1774601437891,-349.78237069,0.00013087,2]
[418938274,1774601437900,-500.0,0.00013087,2]
[418938275,1774601437911,-500.0,0.00013087,2]
[418938276,1774601437920,-500.0,0.00013087,2]
[418938277,1774601437929,-500.0,0.00013087,2]
[418938278,1774601437939,-5110.7848,0.00013088,2]
[418938279,1774601437948,-94271.84325305,0.00013088,2]
[418938280,1774601437959,-251.46306727,0.00013088,2]
[418938281,1774601437974,-778.3542,0.00013088,2]
[418938282,1774601437995,-882.60732054,0.00013088,2]
[418938283,1774601438007,-96872.58225914,0.00013088,2]
[418938284,1774601438016,-532.0,0.00013111,2]
[418938285,1774601438026,-587.2573648,0.00013137,2]
[418938286,1774601438035,-151.0,0.00013188,2]
[418938287,1774601438044,-151.0,0.00013188,2]
[418938288,1774601438053,-151.0,0.00013188,2]
[418938289,1774601438062,-1364.3648092,0.00013205,2]
[418938290,1774601438071,-464.5615821,0.00013205,2]
[418938291,1774601438081,-510.389779,0.00013205,2]
[418938292,1774601438090,-3408.8376722,0.00013205,2]
[418938293,1774601438099,-190.5,0.00013261,2]
[418938294,1774601438108,-500.0,0.00013288,2]
[418938295,1774601438118,-3240.0,0.00013425,2]
[418938296,1774601438127,-1852.42,0.00013487,2]
[418938297,1774601438136,-26430.15292678,0.000135,2]
[418938298,1774601438146,-150.0,0.000136,2]
[418938299,1774601438155,-151.0,0.00013696,2]
[418938300,1774601438164,-500.0,0.00013698,2]
[418938301,1774601438173,-500.0,0.00013698,2]
[418938302,1774601438183,-500.0,0.00013698,2]
[418938303,1774601438192,-500.0,0.00013698,2]
[418938304,1774601438201,-500.0,0.00013698,2]
[418938305,1774601438210,-500.0,0.00013698,2]
[418938306,1774601438220,-500.0,0.00013698,2]
[418938307,1774601438229,-500.0,0.00013698,2]
[418938308,1774601438238,-500.0,0.00013698,2]
[418938309,1774601438247,-470.0,0.00013698,2]
[418938310,1774601438256,-500.0,0.00013698,2]
[418938311,1774601438267,-535.62610565,0.00013698,2]
[418938312,1774601438276,-500.0,0.00013698,2]
[418938313,1774601438285,-500.0,0.00013698,2]
[418938314,1774601438294,-500.0,0.00013698,2]
[418938315,1774601438304,-500.0,0.00013698,2]
[418938316,1774601438313,-500.0,0.00013698,2]
[418938317,1774601438322,-500.0,0.00013698,2]
[418938318,1774601438331,-500.0,0.00013698,2]
[418938319,1774601438340,-500.0,0.00013698,2]
[418938320,1774601438349,-500.0,0.00013698,2]
[418938321,1774601438359,-500.0,0.00013698,2]
[418938322,1774601438368,-581.25413658,0.00013698,2]
[418938323,1774601438377,-500.0,0.00013698,2]
[418938324,1774601438386,-500.0,0.00013698,2]
[418938325,1774601438396,-500.0,0.00013698,2]
[418938326,1774601438406,-500.0,0.00013698,2]
[418938327,1774601438417,-500.0,0.00013698,2]
[418938328,1774601438426,-500.0,0.00013698,2]
[418938329,1774601438436,-510.41211883,0.00013698,2]
[418938330,1774601438445,-500.0,0.00013698,2]
[418938331,1774601438454,-209.45,0.00013699,2]
[418938332,1774601438464,-336.49,0.00013699,2]
[418938333,1774601438473,-151.0,0.00013699,2]
[418938334,1774601438482,-151.0,0.00013699,2]
[418938335,1774601438491,-151.0,0.00013699,2]
[418938336,1774601438501,-2097.93,0.00013699,2]
[418938337,1774601438511,-500.0,0.00013699,2]
[418938338,1774601438520,-500.0,0.00013699,2]
[418938339,1774601438529,-500.0,0.00013699,2]
[418938340,1774601438539,-500.0,0.00013699,2]
[418938341,1774601438548,-500.0,0.00013699,2]
[418938342,1774601438557,-1535.25,0.00013699,2]
[418938343,1774601438566,-3673.23,0.00013699,2]
[418938344,1774601438576,-9999.99,0.00013699,2]
[418938345,1774601438586,-9999.99,0.00013699,2]
[418938346,1774601438595,-150.99,0.00013699,2]
[418938347,1774601438605,-21283.5,0.00013699,2]
[418938348,1774601438615,-500.0,0.00013699,2]
[418938349,1774601438626,-500.0,0.00013699,2]
[418938350,1774601438637,-500.0,0.00013699,2]
[418938351,1774601438646,-500.6669805,0.00013699,2]
[418938352,1774601438656,-559.65581589,0.00013699,2]
[418938353,1774601438667,-500.0,0.00013699,2]
[418938354,1774601438676,-500.0,0.00013699,2]
[418938355,1774601438685,-500.0,0.00013699,2]
[418938356,1774601438694,-500.0,0.00013699,2]
[418938357,1774601438703,-500.0,0.00013699,2]
[418938358,1774601438713,-500.0,0.00013699,2]
[418938359,1774601438722,-500.0,0.00013699,2]
[418938360,1774601438731,-192.11593096,0.00013699,2]
[418938361,1774601438740,-500.0,0.00013699,2]
[418938362,1774601438750,-500.25552119,0.00013699,2]
[418938363,1774601438759,-501.06667076,0.00013699,2]
[418938364,1774601438768,-1487.54,0.000137,2]
[418938365,1774601438778,-1487.54,0.000137,2]
[418938366,1774601438789,-1487.54,0.000137,2]
[418938367,1774601438799,-1400.0,0.000139,5]
[418938368,1774601438809,-500.0,0.00013973,2]
[418938369,1774601438820,-217.58086681,0.00013973,2]
[418938370,1774601438831,-500.0,0.00013973,2]
[418938371,1774601438840,-1487.54,0.0001399,2]
[418938372,1774601438850,-1487.54,0.0001399,2]
[418938373,1774601438860,-255.0,0.00013996,2]
[418938374,1774601438869,-666.0,0.00013999,2]
[418938375,1774601438878,-194.30677307,0.00013999,2]
[418938376,1774601438887,-500.0,0.00013999,2]
[418938377,1774601438897,-330.55828458,0.00013999,2]
[418938378,1774601438908,-500.0,0.00013999,2]
[418938379,1774601438918,-500.0,0.00013999,2]
[418938380,1774601438927,-500.0,0.00013999,2]
[418938381,1774601438937,-500.0,0.00013999,2]
[418938382,1774601438946,-500.0,0.00013999,2]
[418938383,1774601438955,-500.0,0.00013999,2]
[418938384,1774601438964,-329.88455241,0.00013999,2]
[418938385,1774601438973,-185.06452397,0.00013999,2]
[418938386,1774601438982,-500.0,0.00013999,2]
[418938387,1774601438991,-553.10600438,0.00013999,2]
[418938388,1774601439000,-50915.04814243,0.00014,2]
[418938389,1774601439014,-40790.54077272,0.00014,2]
[418938390,1774601439023,-156.546991,0.00014,2]
[418938391,1774601439033,-151.0,0.00014,2]
[418938392,1774601439042,-151.0,0.00014,2]
[418938393,1774601439051,-151.0,0.00014,2]
[418938394,1774601439061,-151.0,0.00014,2]
[418938395,1774601439070,-260.218818,0.00014,2]
[418938396,1774601439079,-206.396699,0.00014,2]
[418938397,1774601439088,-206.396699,0.00014,2]
[418938398,1774601439097,-206.396699,0.00014,2]
[418938399,1774601439107,-206.396699,0.00014,2]
[418938400,1774601439116,-193.073264,0.00014,2]
[418938401,1774601439126,-193.073264,0.00014,2]
[418938402,1774601439135,-193.073264,0.00014,2]
[418938403,1774601439145,-193.073264,0.00014,2]
[418938404,1774601439155,-151.0,0.00014,2]
[418938405,1774601439165,-151.0,0.00014,2]
[418938406,1774601439174,-151.0,0.00014,2]
[418938407,1774601439184,-151.0,0.00014,2]
[418938408,1774601439194,-3507.32481789,0.00014006,2]
[418938409,1774601439204,-500.0,0.00014137,2]
[418938410,1774601439214,-1680.0,0.00014176,2]
[418938411,1774601439224,-250.84,0.00014344,2]
[418938412,1774601439234,-336.49,0.00014384,2]
[418938413,1774601439243,-402.63,0.00014689,2]
[418938414,1774601439253,-402.61,0.00014692,2]
[418938415,1774601439262,-402.61,0.00014692,2]
[418938416,1774601439272,-2000.0,0.00014797,2]
[418938417,1774601439282,-760.6144957,0.00014881,2]
[418938418,1774601439291,-276.50868249,0.00015058,2]
[418938419,1774601439300,-336.49,0.00015068,2]
[418938420,1774601439310,-450.26,0.00015068,2]
[418938421,1774601439320,-578.20924308,0.00015154,2]
[418938422,1774601439329,-500.0,0.00015154,2]
[418938423,1774601439339,-319.76991271,0.00015154,2]
[418938424,1774601439348,-151.0,0.00015154,2]
[418938425,1774601439357,-9211.34798985,0.00015154,2]
[418938426,1774601439367,-500.0,0.00015154,2]
[418938427,1774601439376,-500.0,0.00015154,2]
[418938428,1774601439386,-500.0,0.00015154,2]
[418938429,1774601439395,-420.10842465,0.00015154,2]
[418938430,1774601439411,-79.89157535,0.00015154,2]
[418938431,1774601439420,-500.0,0.00015154,2]
[418938432,1774601439430,-500.0,0.00015154,2]
[418938433,1774601439439,-255.78863317,0.00015154,2]
[418938436,1774601439888,-243.18797536,0.00015154,2]
[418938437,1774601439898,-500.0,0.00015154,2]
[418938438,1774601439907,-500.0,0.00015154,2]
[418938439,1774601439916,-500.0,0.00015154,2]
[418938440,1774601439926,-151.0,0.00015154,2]
[418938441,1774601439935,-500.0,0.00015154,2]
[418938442,1774601439944,-500.0,0.00015154,2]
[418938443,1774601439953,-500.0,0.00015154,2]
[418938444,1774601439962,-500.0,0.00015154,2]
[418938445,1774601439971,-500.0,0.00015154,2]
[418938446,1774601439980,-500.0,0.00015154,2]
[418938447,1774601439989,-500.0,0.00015154,2]
[418938448,1774601439999,-500.0,0.00015154,2]
[418938449,1774601440008,-200.0,0.00015154,2]
[418938450,1774601440017,-500.0,0.00015154,2]
[418938451,1774601440026,-174.61919141,0.00015154,2]
[418938452,1774601440036,-250.0,0.00015154,2]
[418938453,1774601440045,-250.0,0.00015154,2]
[418938454,1774601440054,-250.0,0.00015154,2]
[418938455,1774601440063,-250.0,0.00015154,2]
[418938456,1774601440072,-250.0,0.00015154,2]
[418938457,1774601440082,-250.0,0.00015154,2]
[418938458,1774601440091,-262.90206542,0.00015154,2]
[418938459,1774601440100,-250.0,0.00015154,2]
[418938460,1774601440110,-250.0,0.00015154,2]
[418938461,1774601440119,-250.0,0.00015154,2]
[418938462,1774601440129,-668.65185757,0.00015154,2]
[418938463,1774601440138,-250.0,0.00015154,2]
[418938464,1774601440159,-250.0,0.00015154,2]
[418938465,1774601440169,-201.93286099,0.00015154,2]
[418938466,1774601440178,-250.0,0.00015154,2]
[418938467,1774601440187,-279.9045709,0.00015154,2]
[418938468,1774601440197,-743.50770149,0.00015154,2]
[418938469,1774601440206,-500.0,0.00015154,2]
[418938470,1774601440216,-500.0,0.00015154,2]
[418938471,1774601440225,-500.0,0.00015154,2]
[418938472,1774601440234,-500.0,0.00015154,2]
[418938473,1774601440243,-500.0,0.00015154,2]
[418938474,1774601440252,-278.0,0.00015194,2]
[418938475,1774601440261,-8654.28,0.00015205,2]
[418938476,1774601440271,-500.0,0.00015209,2]
[418938477,1774601440280,-9552.16786547,0.00015209,2]
[418938478,1774601440290,-151.0,0.00015209,2]
[418938479,1774601440299,-272.62944185,0.00015209,2]
[418938480,1774601440308,-155.48,0.00015214,2]
[418938481,1774601440317,-169.7160342,0.00015255,2]
[418938482,1774601440327,-173.335,0.00015264,2]
[418938483,1774601440336,-666.0,0.00015264,2]
[418938484,1774601440346,-500.0,0.00015264,2]
[418938485,1774601440356,-9905.5980765,0.00015264,2]
[418938486,1774601440365,-151.0,0.00015264,2]
[418938487,1774601440375,-282.71673119,0.00015264,2]
[418938488,1774601440384,-500.0,0.00015319,2]
[418938489,1774601440394,-10272.10520533,0.00015319,2]
[418938490,1774601440403,-151.0,0.00015319,2]
[418938491,1774601440413,-293.17725025,0.00015319,2]
[418938492,1774601440422,-500.0,0.00015374,2]
[418938493,1774601440431,-10652.17309792,0.00015374,2]
[418938500,1774601440640,-151.0,0.00015374,2]
[418938503,1774601440668,-304.02480851,0.00015374,2]
[418938505,1774601440683,-700.09583112,0.00015385,2]
[418938507,1774601440692,-500.0,0.00015429,2]
[418938509,1774601440701,-500.0,0.00015429,2]
[418938511,1774601440714,-11046.30350255,0.00015429,2]
[418938513,1774601440724,-151.0,0.00015429,2]
[418938515,1774601440733,-403.79198592,0.00015429,2]
[418938517,1774601440742,-1009.0,0.00015484,5]
[418938519,1774601440751,-500.0,0.00015484,2]
[418938521,1774601440761,-11455.01673214,0.00015484,2]
[418938523,1774601440771,-151.0,0.00015484,2]
[418938526,1774601440781,-5000.0,0.00015495,2]
[418938528,1774601440791,-1600.0,0.00015507,2]
[418938530,1774601440800,-500.0,0.00015539,2]
[418938532,1774601440809,-10241.45456029,0.00015539,2]
[418938533,1774601440819,-151.0,0.00015539,2]
[418938535,1774601440828,-725.0,0.00015594,2]
[418938537,1774601440837,-500.0,0.00015594,2]
[418938538,1774601440847,-151.0,0.00015594,2]
[418938539,1774601440856,-223.177655,0.00015596,7]
[418938540,1774601440866,-500.0,0.00015649,2]
[418938541,1774601440875,-500.0,0.00015649,2]
[418938542,1774601440885,-151.0,0.00015649,2]
[418938543,1774601440894,-228.790504,0.00015671,7]
[418938545,1774601440904,-213.011848,0.00015671,7]
[418938547,1774601440914,-500.0,0.00015699,2]
[418938549,1774601440923,-1854.2033079,0.000157,2]
[418938550,1774601440933,-151.0,0.000157,2]
[418938551,1774601440942,-206.396699,0.000157,2]
[418938552,1774601440952,-206.396699,0.000157,2]
[418938553,1774601440961,-206.396699,0.000157,2]
[418938554,1774601440970,-206.396699,0.000157,2]
[418938555,1774601440980,-2900.0,0.000157,5]
[418938556,1774601440989,-151.0,0.00015702,2]
[418938557,1774601440999,-151.0,0.00015702,2]
[418938558,1774601441009,-151.0,0.00015702,2]
[418938559,1774601441020,-151.0,0.00015702,2]
[418938560,1774601441029,-151.0,0.00015702,2]
[418938561,1774601441039,-151.0,0.00015702,2]
[418938562,1774601441048,-151.0,0.00015702,2]
[418938563,1774601441059,-200.0,0.00015702,2]
[418938564,1774601441069,-181.08010149,0.00015702,2]
[418938565,1774601441078,-693.3919763,0.00015702,2]
[418938566,1774601441087,-209.40437684,0.00015702,2]
[418938567,1774601441097,-290.26104003,0.00015702,2]
[418938568,1774601441106,-771.01748645,0.00015702,2]
[418938569,1774601441116,-500.0,0.00015704,2]
[418938570,1774601441126,-151.0,0.00015704,2]
[418938571,1774601441135,-350.0,0.0001573,2]
[418938572,1774601441144,-247.2746,0.00015753,2]
[418938573,1774601441154,-336.49,0.00015753,2]
[418938574,1774601441165,-500.0,0.00015759,2]
[418938575,1774601441175,-151.0,0.00015759,2]
[418938576,1774601441184,-151.0,0.000158,2]
[418938577,1774601441194,-193.073264,0.000158,2]
[418938578,1774601441203,-193.073264,0.000158,2]
[418938579,1774601441213,-193.073264,0.000158,2]
[418938580,1774601441223,-193.073264,0.000158,2]
[418938581,1774601441232,-4400.0,0.000158,5]
[418938582,1774601441242,-209.45,0.00015862,2]
[418938583,1774601441252,-2000.0,0.0001589,2]
[418938584,1774601441262,-151.0,0.00015894,2]
[418938585,1774601441271,-1600.0,0.00015895,2]
[418938586,1774601441281,-151.15818489,0.000159,2]
[418938587,1774601441290,-153.0387548,0.000159,2]
[418938588,1774601441300,-5900.0,0.000159,5]
[418938589,1774601441309,-394.92449423,0.000159,2]
[418938590,1774601441320,-1242.30276962,0.000159,2]
[418938592,1774601441517,-2926.84199962,0.000159,2]
[418938593,1774601441527,-173.27502033,0.000159,2]
[418938594,1774601441536,-16838.41990876,0.000159,2]
[418938595,1774601441546,-534.3331334,0.000159,2]
[418938596,1774601441555,-150.99805945,0.000159,2]
[418938597,1774601441565,-21293.02646261,0.00015904,2]
[418938598,1774601441575,-184.0,0.00015973,2]
[418938599,1774601441585,-920.94502074,0.0001599,2]
[418938600,1774601441595,-32405.0695563,0.00015991,2]
[418938601,1774601441604,-151.0,0.00015997,2]
[418938602,1774601441614,-463.96883349,0.00015999,2]
[418938603,1774601441624,-500.0,0.00015999,2]
[418938604,1774601441634,-500.0,0.00015999,2]
[418938605,1774601441645,-434.06032538,0.00015999,2]
[418938606,1774601441655,-500.0,0.00015999,2]
[418938607,1774601441664,-500.0,0.00015999,2]
[418938608,1774601441674,-500.0,0.00015999,2]
[418938609,1774601441683,-500.0,0.00015999,2]
[418938610,1774601441692,-500.0,0.00015999,2]
[418938611,1774601441702,-500.0,0.00015999,2]
[418938612,1774601441712,-500.0,0.00015999,2]
[418938613,1774601441721,-500.0,0.00015999,2]
[418938614,1774601441732,-500.0,0.00015999,2]
[418938615,1774601441743,-500.0,0.00015999,2]
[418938616,1774601441752,-500.0,0.00015999,2]
[418938617,1774601441762,-500.0,0.00015999,2]
[418938618,1774601441771,-404.583726,0.00015999,2]
[418938619,1774601441780,-604.69379399,0.00015999,2]
[418938620,1774601441790,-1000.0,0.00015999,2]
[418938621,1774601441800,-1000.0,0.00015999,2]
[418938622,1774601441811,-638.0,0.00016,5]
[418938623,1774601441822,-852.0,0.00016,5]
[418938624,1774601441832,-59766.1621595,0.00016,2]
[418938625,1774601441864,-340.0,0.00016,2]
[418938626,1774601441888,-3404.80612348,0.00016,2]
[418938627,1774601441902,-241839.67526711,0.00016,2]
[418938628,1774601441925,-499.99950048,0.00016,2]
[418938635,1774601442837,-171799.68052805,0.00016,2]
[418938636,1774601442849,-1346.76253768,0.00016,2]
[418938637,1774601442861,-19996.14187395,0.00016,2]
[418938638,1774601442872,-901.48698902,0.00016,2]
[418938639,1774601442883,-743.16612084,0.00016,2]
[418938640,1774601442895,-2728.28605298,0.00016,2]
[418938641,1774601442906,-89845.53776913,0.00016,2]
[418938642,1774601442920,-67900.0,0.00016,2]
[418938643,1774601443090,-444.24049692,0.00016,2]
[418938644,1774601443141,-2379.04011408,0.00016,2]
[418938645,1774601443195,-6283.06601713,0.00016,2]
[418938654,1774601450373,-480.07,0.00012451,2]
[418938656,1774601450383,-712.0,0.00013642,2]
[418938657,1774601450393,-786.72,0.00014772,2]
[418938658,1774601450402,-4798.15893979,0.00016,2]
[418938659,1774601450414,-5134.23898737,0.00016,2]
[418938661,1774601450614,-34000.0,0.00016,2]
[418938662,1774601451000,-15566.952,0.00016,2]
[418938663,1774601451012,-8870.57998341,0.00016,2]
[418938669,1774601737039,152.33,7.29e-05,2]
[418938701,1774602586925,393.83095165,7.888e-05,2]
[418938708,1774602631662,-152.33,9.72e-05,2]
[418938709,1774602631672,-500.0,9.72e-05,2]
[418938710,1774602631682,-500.0,9.72e-05,2]
[418938711,1774602631902,-124.80109905,9.72e-05,2]